bitfinex/quotes_ETHUSD_20240719
["timestamp","ask_amount","ask_price","bid_price","bid_amount"]
[1721377540735,2.95544,3383.6,3382.9,2.325]
[1721377540935,2.9553,3383.8,3383.0,5.490547]
[1721377541226,5.7189,3384.5,3383.2,4.73075]
[1721377541227,2.95511,3384.0,3383.2,4.73075]
[1721377541435,2.95508,3384.0,3383.3,0.55]
[1721377541587,2.95536,3383.7,3383.3,0.55]
[1721377541794,2.95526,3383.8,3383.3,0.55]
[1721377542031,2.95526,3383.8,3383.1,3.55]
[1721377542227,2.95526,3383.8,3383.1,6.50585]
[1721377542615,2.95491,3384.2,3383.2,4.73076]
[1721377542950,3.41767377,3384.9,3383.7,2.95527]
[1721377542951,2.95457,3384.6,3383.7,2.95527]
[1721377543148,2.95465,3384.5,3383.8,0.55]
[1721377543292,2.95465,3384.5,3383.8,3.50522]
[1721377543830,2.95473,3384.4,3383.8,0.55]
[1721377544939,2.95509,3384.0,3383.8,0.55]
[1721377545143,2.95492,3384.2,3383.8,0.55]
[1721377545294,2.95474,3384.4,3383.6,0.55]
[1721377545295,2.955,3384.1,3383.6,0.55]
[1721377545620,2.95474,3384.4,3383.6,1.378058]
[1721377545621,2.95486,3384.3,3383.6,1.378058]
[1721377545819,2.95492,3384.2,3383.6,4.378058]
[1721377546231,2.95474,3384.4,3383.6,9.108448]
[1721377546396,2.95482,3384.3,3383.6,9.108448]
[1721377547123,2.95502,3384.1,3383.6,6.153058]
[1721377547296,2.95492,3384.2,3383.6,6.153058]
[1721377547496,2.95496,3384.2,3383.3,7.4]
[1721377547692,2.9556,3383.4,3383.3,7.4]
[1721377548449,2.95544,3383.6,3383.3,7.4]
[1721377548645,2.95528,3383.8,3383.3,7.4]
[1721377549328,2.9551,3384.0,3383.3,7.4]
[1721377549512,2.95482,3384.3,3383.6,2.95543]
[1721377549840,2.95482,3384.3,3383.7,0.55]
[1721377550001,2.95493,3384.2,3383.7,3.55]
[1721377550196,2.95493,3384.2,3383.7,0.55]
[1721377550541,2.95493,3384.2,3383.6,0.55]
[1721377550702,2.955,3384.1,3383.7,1.0035271]
[1721377550901,2.955,3384.1,3383.8,0.55]
[1721377552142,2.95534,3383.7,3383.6,3.0]
[1721377552444,2.95534,3383.7,3383.4,3.0]
[1721377553334,2.95534,3383.7,3382.9,21.495]
[1721377553496,2.95569,3383.3,3382.9,24.251611]
[1721377553702,2.95569,3383.3,3382.9,4.531611]
[1721377553928,2.95558,3383.5,3382.8,4.73111]
[1721377554238,2.95561,3383.4,3382.8,4.73111]
[1721377554540,2.95543,3383.6,3382.8,4.73111]
[1721377554740,2.95552,3383.5,3382.8,4.73111]
[1721377554899,2.95552,3383.5,3382.9,3.55]
[1721377555215,2.95552,3383.5,3383.0,0.828111]
[1721377555395,2.95562,3383.4,3383.1,0.55]
[1721377556044,2.95519,3383.9,3383.1,2.325]
[1721377556335,2.95526,3383.8,3383.1,8.28078]
[1721377557001,2.95526,3383.8,3383.1,3.55]
[1721377557203,2.95526,3383.8,3383.1,0.55]
[1721377557953,2.95552,3383.5,3383.1,1.4609141]
[1721377558300,2.95538,3383.7,3383.1,1.4609141]
[1721377559210,2.95505,3384.1,3383.3,2.95563]
[1721377559524,2.95508,3384.0,3383.4,0.55]
[1721377559722,2.95508,3384.0,3383.4,1.22415441]
[1721377560654,2.95502,3384.1,3383.4,4.17972441]
[1721377562141,2.9547,3384.5,3383.5,4.83410229]
[1721377562326,3.77377342,3385.4,3383.5,4.83410229]
[1721377562327,2.95396,3385.3,3384.4,1.775]
[1721377562526,2.95369,3385.6,3384.7,2.95441]
[1721377562729,2.95352,3385.8,3384.8,1.775]
[1721377562978,2.95343,3385.9,3385.0,1.775]
[1721377563170,2.95326,3386.1,3385.1,2.325]
[1721377563469,2.95334,3386.0,3385.3,2.95388]
[1721377563651,2.95334,3386.0,3385.4,0.55]
[1721377563854,2.95343,3385.9,3385.4,0.55]
[1721377564033,2.95343,3385.9,3385.3,0.55]
[1721377564395,2.95325,3386.1,3385.3,0.55]
[1721377564396,2.95376,3385.6,3385.3,0.55]
[1721377564531,2.95383,3385.5,3385.3,0.55]
[1721377564728,2.95344,3385.9,3385.1,0.55]
[1721377564923,2.95344,3385.9,3385.2,2.95403]
[1721377565129,2.95344,3385.9,3385.3,3.55]
[1721377565570,2.95351,3385.8,3385.3,3.55]
[1721377565732,2.95361,3385.7,3385.3,0.55]
[1721377565932,2.95361,3385.7,3385.2,0.55]
[1721377566329,2.95353,3385.8,3385.2,0.55]
[1721377566533,2.95342,3385.9,3385.3,0.5325]
[1721377566747,2.95299,3386.4,3385.4,0.55]
[1721377567068,2.95377,3385.5,3385.4,0.55]
[1721377567272,2.4946,3386.0,3384.4,7.4]
[1721377567464,2.95462,3384.6,3384.4,7.4]
[1721377567669,2.95418,3385.1,3383.9,12.32]
[1721377567670,2.95437,3384.9,3383.9,19.72]
[1721377567867,2.95514,3384.0,3383.6,7.4]
[1721377568072,2.95474,3384.4,3383.4,0.67415441]
[1721377568354,3.427,3384.8,3383.4,0.67415441]
[1721377568355,2.95453,3384.7,3383.9,2.95516]
[1721377568555,2.95453,3384.7,3384.0,0.76855]
[1721377568808,2.9544,3384.8,3384.0,5.49854]
[1721377568988,2.95387,3385.4,3384.6,2.95448]
[1721377569150,2.95387,3385.4,3384.4,2.4548]
[1721377569151,2.95387,3385.4,3384.7,4.7294]
[1721377569569,2.95387,3385.4,3384.8,0.55]
[1721377569770,3.427,3386.2,3384.9,2.30294]
[1721377569771,2.95369,3385.6,3384.9,2.30294]
[1721377569968,2.95377,3385.5,3385.0,0.55]
[1721377570205,2.95387,3385.4,3385.0,3.55]
[1721377570372,2.95395,3385.3,3385.0,3.55]
[1721377570576,2.95437,3384.9,3384.1,3.115]
[1721377570825,2.9539,3385.4,3384.4,1.29698]
[1721377570826,3.427,3385.4,3384.4,1.29698]
[1721377570968,2.95462,3384.6,3384.0,8.16855]
[1721377571172,3.427,3385.4,3384.0,0.76855]
[1721377571173,2.95417,3385.1,3384.0,0.76855]
[1721377571475,2.95417,3385.1,3384.0,2.54355]
[1721377571476,2.95469,3384.5,3384.0,2.54355]
[1721377572109,2.95474,3384.4,3384.0,0.76855]
[1721377572310,2.95474,3384.4,3384.0,3.0]
[1721377572617,2.95474,3384.4,3383.8,4.775]
[1721377573317,3.427,3385.3,3384.2,4.89]
[1721377573483,2.95377,3385.5,3384.6,4.72954]
[1721377573688,2.95377,3385.5,3384.4,2.95472]
[1721377573689,2.95387,3385.4,3384.7,8.27943]
[1721377573886,2.3375,3386.1,3384.0,7.4]
[1721377573887,8.86497,3384.1,3384.0,7.4]
[1721377574086,2.95545,3383.6,3383.0,7.4]
[1721377574316,2.95545,3383.6,3382.9,2.4314]
[1721377574525,2.95554,3383.5,3382.9,2.4314]
[1721377574710,2.95554,3383.5,3383.0,1.278754]
[1721377575011,2.95554,3383.5,3382.7,7.4]
[1721377575012,2.95575,3383.3,3382.7,7.4]
[1721377576716,2.95536,3383.7,3382.8,3.0]
[1721377576920,2.95536,3383.7,3382.9,2.95597]
[1721377577114,2.95536,3383.7,3383.0,3.0]
[1721377577276,3.427,3384.3,3383.0,3.0]
[1721377577482,2.95541,3383.7,3383.0,2.95594]
[1721377577990,2.95541,3383.7,3383.1,3.55]
[1721377578584,2.95543,3383.6,3383.1,3.55]
[1721377578916,2.95518,3383.9,3383.1,6.50586]
[1721377579089,2.95518,3383.9,3383.1,3.55]
[1721377579423,2.95518,3383.9,3383.1,0.55]
[1721377579587,2.9556,3383.4,3383.1,0.55]
[1721377579994,2.9556,3383.4,3382.9,0.55]
[1721377580235,2.9556,3383.4,3382.9,2.252112]
[1721377580386,2.95578,3383.2,3382.9,0.55]
[1721377580598,2.9556,3383.4,3382.9,0.55]
[1721377580898,2.9557,3383.3,3382.9,0.55]
[1721377583018,2.95581,3383.2,3382.9,0.55]
[1721377583725,2.95565,3383.4,3382.9,0.55]
[1721377584051,1.52698574,3384.6,3383.0,5.5251]
[1721377584184,2.95484,3384.3,3383.4,2.95558]
[1721377584536,3.427,3385.0,3383.8,3.115]
[1721377584688,2.95412,3385.1,3383.8,3.115]
[1721377584689,2.9543,3384.9,3384.2,2.9549]
[1721377584886,3.427,3385.4,3384.0,2.4592]
[1721377584887,3.427,3385.4,3384.4,3.115]
[1721377585121,1.52698574,3385.9,3384.9,2.95422]
[1721377585122,2.95365,3385.7,3384.9,2.95422]
[1721377585625,2.9537,3385.6,3385.0,3.55]
[1721377585791,2.95385,3385.5,3385.0,3.55]
[1721377586127,2.95403,3385.2,3385.1,3.0]
[1721377586336,5.23967,3386.2,3384.7,7.4]
[1721377586337,2.95433,3384.9,3384.7,7.4]
[1721377586489,3.427,3385.1,3384.2,22.72]
[1721377586824,2.95456,3384.6,3384.3,3.55]
[1721377587027,2.95467,3384.5,3384.3,3.55]
[1721377587342,2.95473,3384.4,3384.3,3.55]
[1721377588655,3.427,3384.7,3384.3,3.55]
[1721377589357,2.95449,3384.7,3384.3,3.55]
[1721377589538,2.95467,3384.5,3384.3,3.55]
[1721377589743,2.95534,3383.7,3383.6,7.4]
[1721377589945,2.95534,3383.7,3383.0,7.4]
[1721377589946,2.95543,3383.6,3383.0,7.4]
[1721377591039,3.427,3383.7,3383.0,10.35595]
[1721377591239,2.95534,3383.7,3383.1,2.95586]
[1721377591425,2.95522,3383.9,3383.2,2.9557]
[1721377591615,2.95522,3383.9,3383.3,1.331156]
[1721377592064,2.95514,3384.0,3383.4,0.55]
[1721377592218,2.95519,3383.9,3383.4,0.55]
[1721377592419,2.95519,3383.9,3383.0,10.35595]
[1721377592420,2.95532,3383.8,3383.3,0.55]
[1721377592659,2.95532,3383.8,3383.2,0.55]
[1721377592955,3.427,3384.1,3383.2,0.55]
[1721377592956,2.95554,3383.5,3383.2,0.55]
[1721377593322,2.95534,3383.7,3383.1,3.0]
[1721377593323,2.95561,3383.4,3383.1,3.0]
[1721377594363,2.95513,3384.0,3383.1,3.0]
[1721377594552,2.95568,3383.4,3383.1,3.0]
[1721377594780,2.95568,3383.4,3383.2,0.55]
[1721377595238,2.95569,3383.3,3383.2,0.55]
[1721377595443,2.95578,3383.2,3383.1,0.55]
[1721377595657,2.95566,3383.4,3383.1,0.55]
[1721377596168,2.95549,3383.6,3383.1,0.55]
[1721377596368,2.9553,3383.8,3383.1,1.2836569]
[1721377596679,2.9553,3383.8,3383.1,7.2395069]
[1721377596834,2.95546,3383.6,3383.1,3.55]
[1721377597034,2.95548,3383.6,3383.1,3.55]
[1721377597273,2.95552,3383.5,3383.1,3.55]
[1721377597429,2.95571,3383.3,3383.1,3.55]
[1721377597837,2.95553,3383.5,3383.1,0.55]
[1721377598173,2.95561,3383.4,3382.8,0.55]
[1721377598577,2.9557,3383.3,3382.8,0.55]
[1721377599036,3.427,3383.3,3382.6,7.4]
[1721377599241,2.95621,3382.7,3382.6,7.4]
[1721377599472,2.95621,3382.7,3382.4,0.005]
[1721377599671,2.95639,3382.5,3382.4,0.005]
[1721377600275,2.95571,3383.3,3382.4,0.005]
[1721377600474,2.95571,3383.3,3382.6,2.95629]
[1721377600696,2.95561,3383.4,3382.7,2.95614]
[1721377600894,2.95561,3383.4,3382.8,3.0]
[1721377601042,2.95552,3383.5,3382.8,5.95613]
[1721377601237,2.95539,3383.7,3382.8,3.0]
[1721377601566,2.95539,3383.7,3383.0,2.95594]
[1721377601768,2.95539,3383.7,3383.1,3.55]
[1721377601954,2.95539,3383.7,3382.9,4.40762]
[1721377602150,2.95595,3383.0,3382.9,3.0]
[1721377602354,2.95595,3383.0,3382.5,3.0]
[1721377603184,5.91278,3382.5,3382.4,0.005]
[1721377604193,2.95639,3382.5,3382.4,0.005]
[1721377604742,2.95619,3382.8,3382.4,0.005]
[1721377605170,2.9563,3382.6,3382.4,0.005]
[1721377605684,2.95639,3382.5,3382.4,0.005]
[1721377606463,2.95628,3382.7,3382.4,0.005]
[1721377606979,2.95622,3382.7,3382.4,0.005]
[1721377607182,3.427,3383.2,3382.4,0.005]
[1721377607183,2.9561,3382.9,3382.4,0.005]
[1721377607681,2.95626,3382.7,3382.4,0.005]
[1721377607841,2.95611,3382.9,3382.4,0.005]
[1721377608483,2.95611,3382.9,3382.4,0.555]
[1721377608854,2.95571,3383.3,3382.4,1.206165]
[1721377609069,2.95553,3383.5,3382.8,2.95612]
[1721377609268,2.95553,3383.5,3382.9,0.55]
[1721377609578,2.95561,3383.4,3382.9,0.55]
[1721377609777,3.427,3383.7,3382.9,0.55]
[1721377610150,2.95575,3383.3,3382.6,0.55]
[1721377610584,3.427,3383.7,3382.6,0.55]
[1721377610585,2.95579,3383.2,3382.6,0.55]
[1721377610772,2.95561,3383.4,3382.6,3.50629]
[1721377610977,2.95561,3383.4,3382.7,5.95621]
[1721377611162,2.95546,3383.6,3382.8,3.50611]
[1721377611363,2.95534,3383.7,3383.0,2.95594]
[1721377611676,2.95534,3383.7,3383.1,0.55]
[1721377611901,2.95465,3384.5,3383.5,2.95546]
[1721377612218,2.95621,3382.7,3382.6,7.4]
[1721377612346,2.3613,3384.2,3382.4,0.005]
[1721377612347,3.427,3383.3,3382.4,0.005]
[1721377612548,2.95628,3382.7,3382.4,0.005]
[1721377613256,2.95639,3382.5,3382.4,0.005]
[1721377615246,2.95622,3382.7,3382.4,0.005]
[1721377615447,2.95631,3382.6,3382.4,0.005]
[1721377615648,2.95639,3382.5,3382.4,0.005]
[1721377616649,2.95627,3382.7,3382.4,0.005]
[1721377616845,2.95598,3383.0,3382.4,0.005]
[1721377617093,2.95613,3382.8,3382.4,0.005]
[1721377617745,2.95605,3382.9,3382.4,0.005]
[1721377618354,2.95637,3382.6,3382.4,0.005]
[1721377618944,2.95615,3382.8,3382.4,0.005]
[1721377619487,2.95622,3382.7,3382.4,0.005]
[1721377619687,9.04182,3383.8,3382.4,0.005]
[1721377619688,2.95613,3382.8,3382.4,0.005]
[1721377620654,2.95601,3383.0,3382.4,0.005]
[1721377620860,2.95604,3382.9,3382.4,0.005]
[1721377621191,2.95613,3382.8,3382.4,0.555]
[1721377621358,2.95613,3382.8,3382.4,0.005]
[1721377621887,2.956,3383.0,3382.4,0.005]
[1721377622097,6.0865,3383.8,3382.4,0.005]
[1721377622098,2.95578,3383.2,3382.4,0.005]
[1721377622250,2.95578,3383.2,3382.6,2.95629]
[1721377622459,2.95578,3383.2,3382.5,2.672554]
[1721377622460,2.95578,3383.2,3382.7,3.0]
[1721377622715,2.95578,3383.2,3382.8,0.55]
[1721377623294,2.95578,3383.2,3382.7,0.55]
[1721377624754,2.95569,3383.3,3382.7,3.50621]
[1721377624961,2.95569,3383.3,3382.8,3.0]
[1721377625278,2.95569,3383.3,3382.9,0.55]
[1721377625809,2.95569,3383.3,3382.7,3.50621]
[1721377625955,2.95552,3383.5,3382.9,2.95603]
[1721377626285,2.95476,3384.4,3383.4,2.95554]
[1721377626495,2.95476,3384.4,3383.5,6.50549]
[1721377626496,2.95487,3384.3,3383.5,6.50549]
[1721377626995,2.95435,3384.9,3384.1,2.95492]
[1721377627214,2.95435,3384.9,3383.6,3.115]
[1721377627215,2.95397,3385.3,3384.4,2.3824]
[1721377627485,2.95397,3385.3,3384.5,2.95464]
[1721377627486,2.95395,3385.3,3384.5,2.95464]
[1721377627691,2.95395,3385.3,3384.6,0.55]
[1721377628003,2.95395,3385.3,3384.6,6.50455]
[1721377629586,2.95395,3385.3,3384.7,0.888695]
[1721377629892,2.95338,3386.0,3384.8,0.55]
[1721377629893,2.95356,3385.8,3384.8,0.55]
[1721377630096,2.95414,3385.1,3384.8,0.55]
[1721377630314,2.95414,3385.1,3384.6,0.55]
[1721377630803,2.95447,3384.7,3384.6,0.55]
[1721377631095,2.95447,3384.7,3383.8,2.2842]
[1721377631096,2.95471,3384.5,3383.8,5.23942]
[1721377631933,2.95447,3384.7,3383.9,2.95516]
[1721377632058,2.95456,3384.6,3383.9,2.95516]
[1721377632258,2.95456,3384.6,3384.0,3.0]
[1721377632502,2.95456,3384.6,3384.1,0.55]
[1721377632656,2.297,3385.3,3384.1,0.55]
[1721377632657,2.95447,3384.7,3384.1,0.55]
[1721377632859,2.95437,3384.9,3384.1,3.50497]
[1721377633095,2.95437,3384.9,3384.2,2.95488]
[1721377633255,2.95437,3384.9,3384.3,0.55]
[1721377633460,2.95421,3385.0,3384.3,3.5048]
[1721377633794,2.95413,3385.1,3384.3,0.55]
[1721377633973,2.95413,3385.1,3384.4,2.95468]
[1721377634299,2.95413,3385.1,3384.5,3.55]
[1721377634593,2.95432,3384.9,3384.5,3.55]
[1721377634797,2.95432,3384.9,3384.5,0.55]
[1721377634997,2.95406,3385.2,3384.4,0.55]
[1721377635296,2.95453,3384.7,3384.4,0.55]
[1721377635505,2.95385,3385.5,3384.4,0.55]
[1721377635506,2.95439,3384.8,3384.4,0.55]
[1721377636606,2.9543,3384.9,3384.4,0.55]
[1721377637659,2.95439,3384.8,3384.4,0.55]
[1721377639479,2.95454,3384.7,3384.4,0.55]
[1721377639993,2.95453,3384.7,3384.4,0.55]
[1721377641498,2.95432,3384.9,3384.4,0.55]
[1721377641864,2.95432,3384.9,3384.4,1.940497]
[1721377642600,2.95432,3384.9,3384.4,0.55]
[1721377642895,2.95439,3384.8,3384.4,0.55]
[1721377643213,3.426,3385.2,3384.4,0.55]
[1721377643214,2.95424,3385.0,3384.4,0.55]
[1721377643500,2.95464,3384.5,3384.4,0.55]
[1721377645693,2.95517,3383.9,3383.8,19.72]
[1721377645986,2.95456,3384.6,3383.2,9.7623]
[1721377646186,2.2963,3384.9,3383.2,9.7623]
[1721377646187,3.426,3384.4,3383.2,9.7623]
[1721377646387,2.95525,3383.9,3383.2,15.6280084]
[1721377646909,2.95525,3383.9,3383.3,2.95569]
[1721377647219,2.95498,3384.2,3383.5,2.95544]
[1721377647424,3.426,3384.8,3383.8,2.95525]
[1721377647425,2.95471,3384.5,3383.8,2.95525]
[1721377647625,2.95473,3384.4,3383.6,5.95541]
[1721377647931,2.95482,3384.3,3383.7,0.55]
[1721377648104,2.95482,3384.3,3383.7,1.99343168]
[1721377648627,2.95467,3384.5,3383.7,0.55]
[1721377648829,2.95514,3384.0,3383.7,0.55]
[1721377649129,2.95514,3384.0,3383.4,3.0]
[1721377649130,2.95514,3384.0,3383.5,0.55]
[1721377649489,2.95494,3384.2,3383.5,0.55]
[1721377650937,2.95509,3384.0,3383.5,0.55]
[1721377651129,2.95475,3384.4,3383.5,2.76336084]
[1721377651434,2.95475,3384.4,3383.6,5.95537]
[1721377651647,2.95475,3384.4,3383.8,2.95524]
[1721377651937,2.95475,3384.4,3383.9,3.55]
[1721377652459,5.90885,3384.8,3383.9,3.55]
[1721377652682,2.95449,3384.7,3384.0,3.605584]
[1721377652963,2.95449,3384.7,3384.1,3.55]
[1721377653319,2.95459,3384.6,3384.1,3.55]
[1721377653525,3.426,3385.2,3384.2,3.0]
[1721377653526,2.95465,3384.5,3384.2,3.0]
[1721377653819,2.95465,3384.5,3384.3,0.55]
[1721377654069,2.95465,3384.5,3384.1,0.55]
[1721377654424,2.95432,3384.9,3384.1,0.55]
[1721377654624,2.95485,3384.3,3384.0,0.55]
[1721377654928,2.95485,3384.3,3383.8,0.55]
[1721377656460,2.95449,3384.7,3384.1,2.95497]
[1721377656769,2.95449,3384.7,3384.2,3.55]
[1721377657367,2.95449,3384.7,3384.2,0.55]
[1721377657689,2.95449,3384.7,3384.1,0.55]
[1721377657889,3.426,3384.8,3384.0,3.0]
[1721377658118,2.95488,3384.3,3383.9,3.0]
[1721377658459,2.9547,3384.5,3383.9,3.0]
[1721377658885,2.95491,3384.2,3383.9,3.0]
[1721377659198,2.95491,3384.2,3384.0,0.55]
[1721377659490,2.95448,3384.7,3384.0,3.50508]
[1721377659696,2.95448,3384.7,3384.1,3.0]
[1721377659905,2.95456,3384.6,3384.2,0.55]
[1721377660571,2.95465,3384.5,3384.2,0.55]
[1721377661097,2.95465,3384.5,3384.0,0.55]
[1721377661564,6.38042,3384.8,3384.0,0.55]
[1721377661765,5.52442,3384.8,3384.0,0.55]
[1721377661967,8.47887,3384.8,3384.0,3.50507]
[1721377662169,5.52442,3384.8,3384.1,3.95438055]
[1721377662372,5.52442,3384.8,3384.2,0.55]
[1721377662698,2.9545,3384.7,3384.2,0.55]
[1721377664000,2.9538,3385.5,3384.3,2.95476]
[1721377664175,2.9538,3385.5,3384.2,0.55]
[1721377664176,2.954,3385.3,3384.6,2.95455]
[1721377664505,2.954,3385.3,3384.7,3.0]
[1721377664702,2.954,3385.3,3384.8,0.55]
[1721377664904,2.95344,3385.9,3384.9,5.25654]
[1721377665112,2.95307,3386.4,3385.7,2.3023]
[1721377665316,2.57,3387.0,3385.8,0.60906381]
[1721377665317,2.9529,3386.5,3385.8,0.60906381]
[1721377665606,2.9529,3386.5,3385.8,3.56250381]
[1721377665773,2.9529,3386.5,3385.9,3.0]
[1721377665966,2.9529,3386.5,3386.0,0.55]
[1721377666166,2.95316,3386.2,3385.8,3.55]
[1721377666372,2.95327,3386.1,3385.8,3.55]
[1721377666590,2.57,3386.2,3385.4,7.4]
[1721377666770,1.52383745,3386.9,3385.4,7.4]
[1721377666771,5.90754,3385.5,3385.4,7.4]
[1721377666971,2.95395,3385.3,3385.0,3.0]
[1721377667182,2.95395,3385.3,3385.1,0.55]
[1721377667405,2.95395,3385.3,3384.9,0.55]
[1721377667975,2.95395,3385.3,3384.9,3.55]
[1721377668929,2.95377,3385.5,3384.9,3.55]
[1721377669136,2.95387,3385.4,3385.0,1.16154055]
[1721377669433,2.95395,3385.3,3385.1,0.55]
[1721377669633,2.95377,3385.5,3384.9,3.55]
[1721377670122,2.95386,3385.4,3384.9,3.55]
[1721377670865,5.90858,3384.9,3384.8,7.4]
[1721377672221,2.95429,3384.9,3384.8,7.4]
[1721377672780,2.37728024,3384.9,3384.8,7.4]
[1721377673026,1.52407699,3386.3,3385.0,5.4934]
[1721377673316,2.95331,3386.1,3385.3,2.95393]
[1721377673618,2.95331,3386.1,3385.4,4.200393]
[1721377673911,2.95343,3385.9,3385.4,4.200393]
[1721377674112,2.95343,3385.9,3385.4,1.200393]
[1721377674524,2.95327,3386.1,3385.4,1.200393]
[1721377674824,2.95346,3385.9,3385.4,1.200393]
[1721377675030,2.95346,3385.9,3385.5,0.7154423]
[1721377675236,2.95346,3385.9,3385.6,0.55]
[1721377675531,2.95296,3386.5,3385.6,0.55]
[1721377675532,2.95334,3386.0,3385.6,0.55]
[1721377675684,2.9532,3386.2,3385.6,0.55]
[1721377677089,5.90644,3386.2,3385.6,0.55]
[1721377677398,2.95325,3386.1,3385.7,0.42654423]
[1721377677587,2.9532,3386.2,3385.8,0.55]
[1721377677588,2.95334,3386.0,3385.8,0.55]
[1721377678128,2.95344,3385.9,3385.6,0.55]
[1721377678887,2.95351,3385.8,3385.6,0.55]
[1721377679116,2.95359,3385.7,3385.6,0.55]
[1721377679636,5.90718,3385.7,3385.6,0.55]
[1721377679983,2.95359,3385.7,3385.6,1.71654423]
[1721377680189,2.95352,3385.8,3385.6,1.71654423]
[1721377681891,2.95359,3385.7,3385.6,1.71654423]
[1721377682991,2.95343,3385.9,3385.6,1.71654423]
[1721377684507,2.95334,3386.0,3385.6,1.71654423]
[1721377684714,2.95334,3386.0,3385.7,0.24319865]
[1721377685005,2.95334,3386.0,3385.8,0.55]
[1721377685216,2.95342,3385.9,3385.8,0.55]
[1721377686543,3.425,3386.7,3385.8,0.55]
[1721377686747,2.95258,3386.9,3385.8,0.55]
[1721377686899,2.95258,3386.9,3385.9,0.49597429]
[1721377687237,2.95324,3386.2,3386.0,0.55]
[1721377688104,2.95246,3387.0,3386.0,0.55]
[1721377688537,2.95297,3386.5,3386.0,0.55]
[1721377688839,2.95299,3386.4,3386.0,0.55]
[1721377689016,2.95308,3386.3,3386.1,0.63888329]
[1721377689218,2.95308,3386.3,3386.2,0.55]
[1721377689730,2.95292,3386.5,3386.2,0.55]
[1721377690038,2.95283,3386.6,3386.2,0.55]
[1721377690227,2.9529,3386.5,3386.2,0.55]
[1721377691402,2.9529,3386.5,3386.2,1.31382676]
[1721377692615,2.95273,3386.7,3386.2,1.31382676]
[1721377692930,2.95282,3386.6,3386.2,1.31382676]
[1721377693930,3.425,3387.5,3386.2,1.31382676]
[1721377694121,2.95261,3386.9,3386.2,8.71382676]
[1721377694456,2.95273,3386.7,3386.3,1.84209501]
[1721377694612,2.95256,3386.9,3386.4,0.55]
[1721377694816,2.9529,3386.5,3386.4,0.55]
[1721377695016,3.425,3387.1,3386.0,3.0]
[1721377695318,2.95321,3386.2,3386.0,3.0]
[1721377695524,2.95321,3386.2,3386.0,4.04]
[1721377695719,3.425,3387.1,3385.9,7.4]
[1721377696410,2.95312,3386.3,3385.9,7.4]
[1721377696611,2.9533,3386.1,3386.0,0.55]
[1721377697245,2.95311,3386.3,3386.0,0.55]
[1721377697759,2.95301,3386.4,3386.0,0.55]
[1721377697922,2.95301,3386.4,3386.0,1.345]
[1721377698109,2.95307,3386.3,3386.0,1.345]
[1721377698513,2.95295,3386.5,3386.0,1.345]
[1721377699453,2.95299,3386.4,3386.0,1.345]
[1721377700038,2.95308,3386.3,3386.0,1.345]
[1721377702910,2.95325,3386.1,3386.0,0.55]
[1721377703117,2.95347,3385.9,3385.5,15.32]
[1721377703434,2.95347,3385.9,3385.6,3.0]
[1721377703745,2.95347,3385.9,3385.6,3.83053]
[1721377703926,2.95347,3385.9,3385.6,0.83053]
[1721377704513,2.95351,3385.8,3385.6,0.83053]
[1721377705013,2.95326,3386.1,3385.7,0.55]
[1721377705216,2.95334,3386.0,3385.7,0.55]
[1721377705642,2.95342,3385.9,3385.7,0.55]
[1721377705844,2.95342,3385.9,3385.7,0.988053]
[1721377706159,2.95312,3386.3,3385.7,0.988053]
[1721377706314,2.95316,3386.2,3385.7,0.988053]
[1721377706512,2.95316,3386.2,3385.7,3.988053]
[1721377707229,2.95334,3386.0,3385.7,0.988053]
[1721377707432,2.95316,3386.2,3385.8,0.3988053]
[1721377707761,2.95316,3386.2,3385.9,0.55]
[1721377707930,2.95302,3386.4,3385.9,0.55]
[1721377708251,2.9528,3386.7,3385.9,0.55]
[1721377708679,2.9528,3386.7,3386.0,2.3458]
[1721377708979,3.425,3387.5,3386.0,2.3458]
[1721377708980,2.95257,3386.9,3386.1,4.13269053]
[1721377709327,2.95257,3386.9,3386.2,3.0]
[1721377709571,2.95257,3386.9,3386.3,0.55]
[1721377709948,2.95257,3386.9,3386.4,0.05904974]
[1721377710276,2.95238,3387.1,3386.5,0.55]
[1721377710576,2.95238,3387.1,3386.6,0.945594]
[1721377710776,2.95238,3387.1,3386.7,0.55]
[1721377712950,2.95238,3387.1,3386.7,0.55]
[1721377714980,2.95223,3387.3,3386.7,0.55]
[1721377715158,2.95205,3387.5,3386.9,2.4346]
[1721377715344,2.95205,3387.5,3387.0,1.44488838]
[1721377715670,2.565,3388.2,3387.0,4.44488838]
[1721377715671,2.95201,3387.6,3387.0,4.44488838]
[1721377716749,2.95176,3387.8,3387.0,4.44488838]
[1721377717492,2.95176,3387.8,3387.1,2.95229]
[1721377717799,2.95176,3387.8,3387.2,3.55]
[1721377717948,2.95176,3387.8,3387.3,1.09471784]